Workbook

Sheet Start
A3: Welche Bemessung möchten Sie durchführen?
A6: Wandanschluss an eine Decke aus

Sheet Wandanschluss Holzdecke
A1: Statik Wandanschluss Holz | T1: =TODAY() -> 2022-04-23 | AK1: =A1 -> Statik Wandanschluss Holz | BD1: =TODAY() -> 2022-04-23 | BU1: Statik Wandanschluss Holz | CS1: =TODAY() -> 2022-04-23 | DE1: =BU1 -> Statik Wandanschluss Holz | EC1: =TODAY() -> 2022-04-23
T2: Seite 1/4 | BD2: Seite 2/4 | CS2: Seite 3/4 | EJ2: Sete 4/4
T3: Bauvorhaben: | X3: Beispielprojekt | BD3: Bauvorhaben: | BH3: =IF(X3="","",X3) -> Beispielprojekt | CN3: Bauvorhaben: | CR3: =IF(X3="","",X3) -> Beispielprojekt | DX3: Bauvorhaben: | EB3: =IF(BH3="","",BH3) -> Beispielprojekt
T4: Position: | X4: Beispiel | BD4: Position: | BH4: =IF(X4="","",X4) -> Beispiel | CN4: Position: | CR4: =X4 -> Beispiel | DX4: Position: | EB4: =BH4 -> Beispiel
A6: Landstraße 25, D - 79809 Weilheim - Bannholz | AK6: Landstraße 25, D - 79809 Weilheim - Bannholz | BU6: Landstraße 25, D - 79809 Weilheim - Bannholz | DE6: Landstraße 25, D - 79809 Weilheim - Bannholz
C8: Berechnung Wandanschluss Holz (Oktober 2021) | AM8: =C8 -> Berechnung Wandanschluss Holz (Oktober 2021) | BW8: =C8 -> Berechnung Wandanschluss Holz (Oktober 2021) | DG8: =C8 -> Berechnung Wandanschluss Holz (Oktober 2021)
AM10: 3. Verbindungsmittel
BW11: Nachweis der Quertragfähigkeit | CG11: ηV,1 | CH11: = | CI11: td,Wand/(VR,d,y /(bElement/1000)) | CQ11: = | CR11: =AE51/(BE54/(Y24/1000)) -> 0.0885625
AM12: Zugverankerung der abghebenden Kräfte | BW12: Nachweis der Tragfähigkeit auf Druck | CJ12: ηDruck | CL12: = | CM12: Fc,d/Rd,Randrippe | CQ12: = | CR12: =AE53/BE57 -> 0.07178260389 | DG12: Rohdichte Koppelbrett | DT12: ρko | DV12: = | DW12: =_xlfn.XLOOKUP(BE34,'Daten Holz'!A18:A20,'Daten Holz'!D18:D20) -> 505 | DZ12: kg/m³
AM13: Hersteller Zuganker / Rispenband | BE13: Simpson Strong Tie | DG13: Rohdichte Element | DT13: ρEl | DV13: = | DW13: 420 | DZ13: kg/m³
AM14: Typ | BE14: BAN2040xx | DG14: gemittelte Rohdichte | DT14: ρm | DV14: = | DW14: =(DW13+DW12)/2 -> 462.5 | DZ14: kg/m³
AM15: Nägel Typ | BE15: =_xlfn.XLOOKUP(BE14,'Daten Holz'!C30:C33,'Daten Holz'!F30:F33) -> CNA 4x60 | DG15: Klammerdurchmesser | DT15: dKlammer | DV15: = | DW15: 1.83 | DZ15: mm
AM16: Anzahl Nägel | BA16: n | BD16: = | BE16: =_xlfn.XLOOKUP(BE14,'Daten Holz'!C30:C33,'Daten Holz'!E30:E33) -> 8 | BW16: Nachweis der Anschlüsse
AM17: Tragfähigkeit der Zugverankerung | BA17: Rt,d,Zuganker | BD17: = | BE17: =_xlfn.XLOOKUP(BE14,'Daten Holz'!C30:C33,'Daten Holz'!H30:H33) -> 13.69230769 | BW17: Nachweis der Zugverankerung | DG17: Verschiebungsmodul der Klammer nach [DIN EN 1995-1-1] 7.1
BZ18: Anzahl der Zuganker je Wandende | CP18: nz | CQ18: = | CR18: 1 | CW18: Stück
C19: Scheibengeometrie | AM19: Schubsicherung der Horizontalkräfte | CN19: Rt,d,Zuganker | CQ19: = | CR19: =BE17 -> 13.69230769 | CW19: kN | DG19: Der Verschiebungsmodul Kser für die Klammer gilt je Stift und kann daher mit dem Faktor 2 multipliziert werden.
C20: Scheibenbreite: | N20: bs | P20: = | Q20: 4.8 | T20: m | AM20: Hersteller Schubanker | BE20: Simpson Strong Tie | CI20: ηZug | CK20: = | CL20: Ft,d/(Rt,d,Zuganker*nz) | CQ20: = | CR20: =AE55/(BE17*CR18) -> 0.8044470727 | DL20: Kser | DN20: = | DO20: (ρm1,5/80 * dKlammer0,8) * 2 | DV20: = | DW20: =(DW14^1.5 / 80 * DW15 ^ 0.8) * 2 -> 403.2445311 | DZ20: N/mm
C21: Scheibenhöhe: | G21: Standard 2,48 oder 2,98 | N21: hs | P21: = | Q21: 3.2 | T21: m | AM21: Typ | BE21: AE 76-R | DL21: KFuge | DN21: = | DO21: (Kser / eKl,eff * hS ) / 2 | DV21: = | DW21: =(DW20*1000 / CR39* Q21 ) / 2 -> 38711.47498 | DZ21: N/mm
AM22: Nägel Typ | BE22: =_xlfn.XLOOKUP(BE21,'Daten Holz'!C55:C57,'Daten Holz'!E55:E57) -> CNA4x60 | BW22: Nachweis der Schubsicherung
C23: Lignotrend Element | R23: Element | V23: Höhe [mm] | AA23: Elementbreite [mm] | AM23: Anzahl Nägel | BE23: =_xlfn.XLOOKUP(BE21,'Daten Holz'!C55:C57,'Daten Holz'!D55:D57) -> voll ausgenagelt | BK23: (Anordnung/weiterführende Hinweise | BZ23: Anzahl der Winkel je Wand | CP23: ns | CQ23: = | CR23: =BE25 -> 3 | CW23: Stück | DG23: Anzahl der Koppelfugen | DS23: nKoppelf. | EE23: = | EF23: =ROUND((bsholzbem /(Y24/1000))-1,0) -> 7 | EI23: Stück
Q24: Uni Q3-110 | U24: =_xlfn.XLOOKUP(Q24,'Daten Holz'!A3:A5,'Daten Holz'!B3:B5) -> 110 | Y24: 625 | AM24: Tragfähigkeit einer Schubverankerung | BA24: Rt,d,Zuganker | BD24: = | BE24: =ROUND(_xlfn.XLOOKUP(BE21,'Daten Holz'!C55:C57,'Daten Holz'!G55:G57),2) -> 6 | BK24: kN | BN24: siehe Herstellerangaben) | CM24: Rt,d,Schubanker | CQ24: = | CR24: =BE24 -> 6 | CW24: kN | DG24: Verformung infolge der Koppelfugen | DS24: uges,Fuge | DV24: = | DW24: Ft,k*(nKoppelf.+1)/KFuge*(hS/bS) | EE24: = | EF24: =AE54 * (EF23 +1) / (DW21 / 1000) * (Q21 / bsholzbem) -> 1.011676997 | EI24: mm
AM25: Anzahl der Winkel über Wandlänge | BC25: ns | BD25: = | BE25: 3 | BK25: Stück | CH25: ηSchub | CJ25: = | CK25: Hd,ges/(ns*Rt,d,Schubanker) | CQ25: = | CR25: =Q40/(CR24*CR23) -> 0.7266666667 | DG25: Schubverzerrung der Elemente | DS25: GAef,Scheibe | DV25: = | DW25: GAef / bElement * bS | EE25: = | EF25: =BE55/(Y24/1000) * bsholzbem -> 58406.4 | EI25: kN
C26: Schwelle: | DS26: uges,Elemente | DV26: = | DW26: hS * ( Hw,k,ges * 1) / GAef,Scheibe | EE26: = | EF26: =Q21* ( Q38 * 1) / EF25 -> 0.0004777558624 | EI26: mm
C27: Schwellenmaterial | Q27: GL24h | AM27: Koppelfugen Schwelle/Rähm zu Wandelement | BW27: Nachweis der Koppelfugen Schwelle/Rähm zu Wandelement | DG27: Gesamtverformung der Scheibe | DS27: uges | DV27: = | DW27: uges,Fuge + uges,Elemente | EE27: = | EF27: =EF26+EF24 -> 1.012154753 | EI27: mm
C28: Standardschwellenhöhen 120 oder 240mm | AM28: Klammern | BC28: Klammertyp | BD28: : | BE28: 1,83 x 63 | BJ28: mm | BZ28: Anzahl Klammern / Meter Schwelle | CP28: nK | CQ28: = | CR28: =BE31 -> 10 | CW28: Stück | DG28: maximal zulässige Verformung | DS28: umax | DV28: = | DW28: hs/500 | EE28: = | EF28: =Q21*1000 / 500 -> 6.4 | EI28: mm
C29: Schwellenhöhe oben | Q29: 240 | T29: mm | AM29: Tragfähigkeit pro Klammer | BA29: Rk,Klammer | BD29: = | BE29: 0.73 | BJ29: kN | CN29: Rv,d,Klammer | CQ29: = | CR29: =BE30 -> 0.5615384615 | CW29: kN
C30: Schwellenhöhe unten | Q30: 120 | T30: mm | BA30: Rd,Klammer | BD30: = | BE30: =Q35*BE29/Q33 -> 0.5615384615 | BJ30: kN | CG30: ηSchwelle | CJ30: = | CK30: td,Wand/(nk*Rv,d,Klammer) | CQ30: = | CR30: =AE51/(CR29*CR28) -> 0.4852739726 | DG30: Nachweis der Verformungen | DZ30: ηu | EA30: = | EB30: uges/umax | EE30: = | EF30: =EF27/EF28 -> 0.1581491802
AM31: Anzahl Klammern / Meter Schwelle | BB31: nK | BD31: = | BE31: 10 | BJ31: Stück/m
C32: 1. Eingabe der Belastungen | BW32: Nachweis der Koppelfugen der Wandelemente
C33: Teilsicherheitsbeiwerte | N33: уM | P33: = | Q33: 1.3 | AM33: Koppelfuge der Wandelemente | BZ33: Koppelbrett: | CP33: nK | CQ33: = | CR33: 1 | CW33: Stück
N34: уG,stab | P34: = | Q34: 0.9 | AM34: Koppelbrett | BC34: Material | BD34: : | BE34: DreiS.- Platte | CO34: Rv,d,kop | CQ34: = | CR34: =BE38 -> 55.03846154 | CW34: kN/m | DG34: Zusammenfassung der Nachweise
C35: Modifikationsbeiwert | N35: kmod | P35: = | Q35: 1 | X35: (bei Belastung aus Erdbeben 1,1) | AN35: Dicke | BB35: dkop | BD35: = | BE35: 26.5 | BJ35: mm | CH35: ηKoppelbrett | CK35: = | CL35: td,Wand/(nk*Rv,d,kop) | CQ35: = | CR35: =AE51/(CR34*CR33) -> 0.04951083159
AN36: Schubtragfähigkeit | BB36: fv,k | BD36: = | BE36: =_xlfn.XLOOKUP(BE34,'Daten Holz'!A18:A20,'Daten Holz'!B18:B20) -> 2.7 | BJ36: N/mm² | CA36: (für den Nachweis der Schubtragfähigkeit wird auf der sicheren Seite liegend nur ein Koppelbrett berücksichtigt) | DG36: GZT
C37: Horizontallasten am Wandkopf infolge Wind/Erdbeben | AX37: fv,d | AZ37: = | BA37: fv,k*kmod/уm | BD37: = | BE37: =_xlfn.XLOOKUP(BE34,'Daten Holz'!A18:A20,'Daten Holz'!B18:B20)*Q35/Q33 -> 2.076923077 | BJ37: N/mm² | DH37: =AM49 -> Nachweis der Wandelemente
N38: Hw,k,ges | P38: = | Q38: 8.72 | T38: kN | AN38: Schubtragfähigkeit bezogen auf dkop | AX38: Rv,d,kop | AZ38: = | BA38: dkop*fv,d | BD38: = | BE38: =BE37*BE35 -> 55.03846154 | BJ38: kN/m | BZ38: Klammern: | DJ38: Quertragfähigkiet | DS38: =DT38 -> 0.0885625 | DT38: =CR11 -> 0.0885625
N39: уq | P39: = | Q39: 1.5 | X39: (bei Belastung aus Erdbeben 1,0) | BZ39: effektiver Klammerabstand | CO39: eKl,ef | CQ39: = | CR39: 16.66666667 | CW39: mm | DJ39: Drucktragfähigkeit | DS39: =DT39 -> 0.07178260389 | DT39: =CR12 -> 0.07178260389
I40: Hd,ges | K40: = | L40: уq * Hw,k,ges | P40: = | Q40: =Q38*Q39 -> 13.08 | T40: kN | AM40: Klammern | BE40: Klammertyp wie bei Koppelfuge Schwelle/Rähm | CN40: Rv,d,Klammer | CQ40: = | CR40: =BE30 -> 0.5615384615 | CW40: kN | DH40: =BW16 -> Nachweis der Anschlüsse
C41: Auflast der Wand inklusive Eigengewicht | AN41: Klammerabstand | BB41: eKL | BD41: = | BE41: 150 | BJ41: mm | CD41: ηKlammer | CG41: = | CH41: td,Wand/(Rv,d,Klammer*1000/eKl,ef) | CQ41: = | CR41: =AE51/(CR40*1000/CR39) -> 0.08087899543 | DJ41: Zugverankerung | DS41: =DT41 -> 0.8044470727 | DT41: =CR20 -> 0.8044470727
N42: gk | P42: = | Q42: =33.9*2.5/100 -> 0.8475 | T42: kN/m | BA42: EC 5, Tabelle 8.3 | BD42: ek,min = 10d | BE42: = | BF42: =10*IF(BE40="1,83 x 63mm",1.83,1.53) -> 15.3 | DJ42: Schubsicherung | DS42: =DT42 -> 0.7266666667 | DT42: =CR25 -> 0.7266666667
N43: pk | P43: = | Q43: 0 | T43: kN/m | AN43: Anzahl der Koppelbretter je Stoß | BB43: nKo | BD43: = | BE43: 1 | BJ43: Stück/Stoß | BW43: 5. Gebrauchstauglichkeitsnachweis | DJ43: Schwelle/Rähm zu Wandelement | DS43: =DT43 -> 0.4852739726 | DT43: =CR30 -> 0.4852739726
H44: qd | I44: = | J44: 1,35 * gk + 1,5 * pk | P44: = | Q44: =1.35*Q42+1.5*Q43 -> 1.144125 | T44: kN/m | AN44: Schnittigkeit der Klammerverbindung | DJ44: Koppelfuge der Wandelemente
AN45: im Bereich des Koppelbretts | BB45: nKI | BD45: = | BG45: =IF(BE43=2,3,1) -> 1 | BW45: Der Hauptanteil der Scheibenverformung resultiert aus der Verschiebung in den | DL45: Koppelbrett | DS45: =DT45 -> 0.04951083159 | DT45: =CR35 -> 0.04951083159
C46: 2. Ermittlung der Schnittgrößen | AN46: effektiver Klammerabstand | BB46: eKl,ef | BD46: = | BF46: =$BE$41/$BG$45 -> 150 | BJ46: mm | BW46: Koppelfugen und der Schubverzerrung im Element. | DL46: Klammern | DS46: =DT46 -> 0.08087899543 | DT46: =CR41 -> 0.08087899543
C47: Anzahl der Elemente | T47: nElemente | W47: = | X47: bs/bElement | AD47: = | AE47: =ROUND(bsholz*1000/Y24,0) -> 8 | AH47: Stück | DG47: GZG
C48: Druckzone | T48: bR | W48: = | X48: bElement*nElemente*1/5 | AD48: = | AE48: =Y24*AE47/5000 -> 1 | AH48: m | AM48: 4. Tragfähigkeitsnachweis | DH48: Nachweis der Verformungen | DS48: =DT48 -> 0.1581491802 | DT48: =EF30 -> 0.1581491802
C49: Mittlere Breite | T49: bM | W49: = | X49: bs-(2*bR/2) | AD49: = | AE49: =bsholz-(2*AE48/2) -> 3.8 | AH49: m | AM49: Nachweis der Wandelemente
AM50: Die Kenndaten der Lignotrend-Elemente finden Sie in der jeweiligen
C51: Schubfluss | T51: td,Wand | W51: = | X51: Hd,ges/bS | AD51: = | AE51: =Q40/bsholz -> 2.725 | AH51: kN/m | AM51: technischen Dokumentation auf der letzten Seite.
C52: Faktor zur Berücksichtigung der Scheibengeometrie | T52: FG | W52: = | X52: wenn(bs>hs/2; 0,75; 1) | AD52: = | AE52: =IF(bsholz>Q21/2,0.75,1) -> 0.75 | AH52: -
C53: Bemessungsdruckkraft | T53: Fc,d | W53: = | X53: FG*Hd,ges*hs/bM + qd*bR | AD53: = | AE53: =((AE52*Q40*Q21)/AE49)+(Q44*AE48) -> 9.405177632 | AH53: kN | BB53: VR,k,y | BD53: = | BE53: =_xlfn.XLOOKUP(Q24,'Daten Holz'!A3:A5,'Daten Holz'!C3:C5) -> 25 | BJ53: kN/Element
C54: charakt. Zugkraft | T54: Ft,k | W54: = | X54: Hw,k,ges*hs/bM | AD54: = | AE54: =Q38*Q21/AE49 -> 7.343157895 | AH54: kN | BB54: VR,d,y | BD54: = | BE54: =Q35*BE53/Q33 -> 19.23076923 | BJ54: kN/Element
C55: Bemessungszugkraft | T55: Ft,d | W55: = | X55: Hd,ges*hs/bM | AD55: = | AE55: =Q40*Q21/AE49 -> 11.01473684 | AH55: kN | BB55: GAef | BD55: = | BE55: =_xlfn.XLOOKUP(Q24,'Daten Holz'!A3:A5,'Daten Holz'!D3:D5) -> 7605 | BJ55: kN/Element
C56: anzusetzende Auflast auf den Scheibenrand zur Lagesicherung | T56: Fv,d,Aufl | W56: = | X56: уG,stab*(gk*bs/2) | AD56: = | AE56: =Q34*(Q42*bsholz/2) -> 1.8306 | AH56: kN | BB56: NR,d | BD56: = | BE56: =_xlfn.XLOOKUP(Q24,'Daten Holz'!A3:A5,'Daten Holz'!G3:G5)*kmodholz/ymholzbem -> 131.0230769 | BJ56: kN/m
C57: zu verankernde Zuglast | T57: Ft,d,res | W57: = | X57: Ft,d-Fv,d,Aufl. | AD57: = | AE57: =AE55-AE56 -> 9.184136842 | AH57: kN | AW57: Rd,Randrippe | AZ57: = | BA57: NR,d *bR | BD57: = | BE57: =BE56*AE48 -> 131.0230769 | BJ57: kN

Sheet Daten Holz (hidden)
A1: Elemente
B2: Stärke [mm] | C2: VR,k,y [kN] | D2: GAef [kN] | E2: Iz [cm4] | F2: MR,k,z [kNm] | G2: NR,k,SP[kN/m]
A3: Uni Q3-110 | B3: 110 | C3: 25 | D3: 7605 | E3: 112.1 | F3: 57.4 | G3: 170.33
A4: Uni Q3-123 | B4: 123 | C4: 33.1 | D4: 9686 | E4: 107.2 | F4: 54.9 | G4: 157.69
A5: Uni Q3/HL-110 | B5: 110 | C5: 25 | D5: 7492 | E5: 107.4 | F5: 60.7 | G5: 166.61
A9: Schwelle
A10: GL24h
A11: Ligno-Schwelle
A12: Buche GL 70
A13: C24
A14: SteicoLVL
A16: Koppelbrett
B17: fv,k [N/mm²] | C17: pk,1 [kg/m³] | D17: pmean [kg/m³]
A18: Nadelholz C24 | B18: 2 | C18: 350 | D18: 420
A19: Sperrholz | B19: 3 | C19: 550 | D19: 640
A20: DreiS.- Platte | B20: 2.7 | C20: 430 | D20: 505
A23: Zugverankerung | C23: Holz-Holz
A25: Simpson Strong Tie
A26: Würth
E28: Holz
A29: Hersteller | C29: Typ | D29: Unterlegscheibe | E29: Anzahl Nägel | F29: Ankernagel LBA | G29: R1,k,timber | H29: R1,d,timber
A30: Würth | C30: Typ V 65x135x90 | D30: - | E30: 9 | F30: 4x40 + ASSY Schraube 5x30 Table A5 ETA 14/0274 | G30: 21.2 | H30: =G30*kmod/ymholz -> 16.30769231
A31: Simpson Strong Tie | B31: Windrispen | C31: BAN2025xx | D31: - | E31: 8 | F31: CNA 4x60 | G31: =MIN(2.36*E31,11.9) -> 11.9 | H31: =G31/1.3 -> 9.153846154
C32: BAN2040xx | D32: - | E32: 8 | F32: CNA 4x60 | G32: =MIN(17.8,E32*2.36) -> 17.8 | H32: =G32/1.3 -> 13.69230769
C33: BAN208025 | D33: - | E33: 16 | F33: CNA 4x60 | G33: =MIN(35.6,E33*2.36) -> 35.6 | H33: =G33/1.3 -> 27.38461538
A48: Schubsicherung | C48: Holz-Holz
A49: Rothoblaas
A50: Simpson Strong Tie
E53: Holz
A54: Hersteller | C54: Typ | D54: Anzahl Nägel Wandschenkel | E54: Ankernagel LBA | F54: R1,k,timber | G54: R1,d,timber
A55: Simpson Strong Tie | C55: AE 76-R | D55: voll ausgenagelt | E55: CNA4x60 | F55: =15.6/2 -> 7.8 | G55: =F55*kmod/ymholz -> 6
A56: Simpson Strong Tie | C56: AE 116 | D56: voll ausgenagelt | E56: CNA4x60 | F56: =23.2/2 -> 11.6 | G56: =F56*kmod/ymholz -> 8.923076923
A57: Rothoblaas | C57: Titan F TCF200 | D57: voll ausgenagelt | E57: CNA4x60 | F57: 35.5 | G57: =F57*kmod/ymholz -> 27.30769231

Sheet Wandanschluss Betondecke (hidden)
A1: Statik Wandanschluss Beton | T1: =TODAY() -> 2022-04-23 | AL1: Statik Wandanschluss Beton | BE1: =TODAY() -> 2022-04-23 | BW1: Statik Wandanschluss Beton | CP1: =TODAY() -> 2022-04-23 | DH1: Statik Wandanschluss Beton | EA1: =TODAY() -> 2022-04-23
T2: Seite 1/4 | BE2: Seite 2/4 | CP2: Seite 3/4 | EA2: Seite 4/4
T3: Bauvorhaben: | X3: Beispielprojekt | BE3: Bauvorhaben: | BI3: =X3 -> Beispielprojekt | CP3: Bauvorhaben: | CT3: =BI3 -> Beispielprojekt | EA3: Bauvorhaben: | EE3: =CT3 -> Beispielprojekt
T4: Position: | X4: Beispiel | BE4: Position: | BI4: =X4 -> Beispiel | CP4: Position: | CT4: =BI4 -> Beispiel | EA4: Position: | EE4: =CT4 -> Beispiel
A6: Landstraße 25, D - 79809 Weilheim - Bannholz | AL6: Landstraße 25, D - 79809 Weilheim - Bannholz | BW6: Landstraße 25, D - 79809 Weilheim - Bannholz | DH6: Landstraße 25, D - 79809 Weilheim - Bannholz
C8: Berechnung Wandanschluss Beton (Oktober 2021) | AN8: =C8 -> Berechnung Wandanschluss Beton (Oktober 2021) | BY8: =C8 -> Berechnung Wandanschluss Beton (Oktober 2021) | DJ8: =C8 -> Berechnung Wandanschluss Beton (Oktober 2021)
AN10: 3. Verbindungsmittel | AU10: (alle Tragfähigkeitsnachweise für Beton C20/25) | BY10: Nachweis der Quertragfähigkeit | CI10: ηV,1 | CJ10: = | CK10: td,Wand/(VR,d,y /(bElement/1000)) | CS10: = | CT10: =AE51/(BB54/(Q23/1000)) -> 0.054405 | DJ10: 5. Gebrauchstauglichkeitsnachweis
AN11: Zugverankerung der abghebenden Kräfte | BY11: Nachweis der Tragfähigkeit auf Druck | CL11: ηDruck | CN11: = | CO11: Fc,d/Rd,Randrippe | CS11: = | CT11: =AE53/BB57 -> 0.1461790642 | DJ11: Der Hauptanteil der Scheibenverformung resultiert
AN12: Hersteller Zuganker | BA12: Simpson Strong Tie | DJ12: aus der Verschiebung in den Koppelfugen
AN13: Typ | BA13: HTT4 + Hilti Anker | DJ13: und der Schubverzerrung im Element.
AN14: Unterlegsscheibe | BB14: =_xlfn.XLOOKUP(BA13,'Daten Beton'!C23:C40,'Daten Beton'!D23:D40) -> US50/50/8
AN15: Betonanker | BC15: =_xlfn.XLOOKUP(BA13,'Daten Beton'!C23:C40,'Daten Beton'!L23:L40) -> M16*135 | BG15: =_xlfn.XLOOKUP(BA13,'Daten Beton'!C23:C40,'Daten Beton'!M23:M40) -> Hilti HST3
AN16: Nägel Typ | BB16: =_xlfn.XLOOKUP(BA13,'Daten Beton'!C23:C40,'Daten Beton'!F23:F40) -> CNA 4x60 | BY16: Nachweis der Anschlüsse
AN17: Anzahl Nägel | AX17: n | BA17: = | BB17: =_xlfn.XLOOKUP(BA13,'Daten Beton'!C23:C40,'Daten Beton'!E23:E40) -> 17 | BJ17: (Anordnung/weiterführende Hinweise | BY17: Nachweis der Zugverankerung
C18: Scheibengeometrie | AN18: Tragfähigkeit der Zugverankerung | AX18: Rt,d,Zuganker | BA18: = | BD18: =_xlfn.XLOOKUP(BA13,'Daten Beton'!C23:C40,'Daten Beton'!R23:R40) -> 18 | BG18: kN | BM18: siehe Herstellerangaben) | CB18: Anzahl der Zuganker je Wandende | CQ18: nz | CS18: = | CT18: 1 | CY18: Stück | DJ18: Steifigkeit der Koppelfuge
C19: Scheibenbreite: | N19: bs | P19: = | Q19: 4 | T19: m | CO19: Rt,d,Zuganker | CS19: = | CT19: =BD18 -> 18 | CY19: kN
C20: Scheibenhöhe: | G20: Standard 2,480 oder 2,980 | N20: hs | P20: = | Q20: 2.7 | T20: m | AN20: Schubsicherung der Horizontalkräfte | CJ20: ηZug | CL20: = | CM20: Ft,d/(Rt,d,Zuganker*nz) | CS20: = | CT20: =AE55/(BD18*CT18) -> 0.3090461538 | DJ20: Rohdichte Koppelbrett | DW20: ρko | DX20: = | DY20: = | DZ20: =_xlfn.XLOOKUP(BB36,'Daten Beton'!A11:A13,'Daten Beton'!D11:D13) -> 420 | EC20: kg/m³
AN21: Hersteller Schubanker | AZ21: Simpson Strong Tie | DJ21: Rohdichte Element | DW21: ρEl | DX21: = | DY21: = | DZ21: 420 | EC21: kg/m³
C22: Lignotrend Element | J22: Element | N22: Höhe [mm] | S22: Elementbreite [mm] | AN22: Typ | AZ22: AE 76-R (Beton) | BI22: =AZ22 -> AE 76-R (Beton) | BY22: Nachweis der Schubsicherung | DJ22: gemittelte Rohdichte | DW22: ρm | DX22: = | DY22: = | DZ22: =(DZ21+DZ20)/2 -> 420 | EC22: kg/m³
I23: Uni Q3-110 | M23: =_xlfn.XLOOKUP(I23,'Daten Beton'!A3:A5,'Daten Beton'!B3:B5) -> 110 | Q23: 625 | AN23: Unterlegsscheibe | BB23: =_xlfn.XLOOKUP(AZ22,'Daten Beton'!C49:C56,'Daten Beton'!D49:D56) -> U40/50/10 | BZ23: Verankerung im Holz bzw. Stahltragfähigkeit: | DJ23: Klammerdurchmesser | DV23: dKlammer | DX23: = | DY23: = | DZ23: 1.83 | EC23: mm
N24: =M23 -> 110 | AN24: Betonanker | BB24: =_xlfn.XLOOKUP(AZ22,'Daten Beton'!C49:C56,'Daten Beton'!L49:L56) -> M12*103 | BH24: =_xlfn.XLOOKUP(AZ22,'Daten Beton'!C49:C56,'Daten Beton'!M49:M56) -> BOAX-II M12-103/5 | CB24: Anzahl der Winkel je Wand | CQ24: ns | CS24: = | CT24: =BB28 -> 2 | CY24: Stück
C25: Schwelle: | AN25: Nägel Typ | BB25: =_xlfn.XLOOKUP(AZ22,'Daten Beton'!C49:C56,'Daten Beton'!F49:F56) -> CNA 4x60 | CO25: Rv,d,Schubanker | CS25: = | CT25: =BB27 -> 4.307692308 | CY25: kN | DJ25: Verschiebungsmodul der Klammer nach [DIN EN 1995-1-1] 7.1
C26: Schwellenmaterial | Q26: Ligno-Schwelle | AN26: Anzahl Nägel | AX26: n | BA26: = | BB26: =_xlfn.XLOOKUP(AZ22,'Daten Beton'!C49:C56,'Daten Beton'!E49:E56) -> 9 | BJ26: (Anordnung/weiterführende Hinweise | CH26: ηSchub,1 | CK26: = | CL26: Hd,ges/(ns*Rt,d,Schubanker) | CS26: = | CT26: =Q40/(CT25*CT24) -> 0.7772142857
C27: Standardschwellenhöhen 120 oder 240mm | AN27: Tragfähigkeit der Schubverankerung | AX27: Rv,d,Zuganker | BA27: = | BB27: =_xlfn.XLOOKUP(AZ22,'Daten Beton'!C49:C56,'Daten Beton'!O49:O56) -> 4.307692308 | BM27: siehe Herstellerangaben) | DJ27: Der Verschiebungsmodul Kser für die Klammer gilt je Stift und kann daher mit dem Faktor 2 multipliziert werden.
C28: Schwellenhöhe oben | Q28: 120 | T28: mm | AN28: Anzahl der Winkel über Wandlänge | AX28: ns | BA28: = | BB28: 2 | BF28: Stück | BZ28: Nachweis der Betondübel: | DN28: Kser | DP28: = | DQ28: (ρm1,5/80 * dKlammer0,8) * 2 | DX28: = | DY28: = | DZ28: =(DZ22^1.5 / 80 * DZ23 ^ 0.8) * 2 -> 348.9593313 | EC28: N/mm
C29: Schwellenhöhe unten | Q29: 120 | T29: mm | CP29: e | CS29: = | CT29: =IF(OR('Daten Beton'!C66=BI22,'Daten Beton'!C68=BI22),'Daten Beton'!D66,N24/2+_xlfn.XLOOKUP(BI22,'Daten Beton'!C61:C68,'Daten Beton'!D61:D68)) -> 79 | CY29: mm | DN29: KFuge | DP29: = | DR29: (Kser / eKl,eff * hS ) / 2 | DX29: = | DY29: = | DZ29: =(DZ28*1000 / CT50* Q20 ) / 2 -> 9421.901946 | EC29: N/mm
AN30: Koppelfugen Schwelle/Rähm zu Wandelement | CO30: Dübelabstand | CS30: = | CT30: =_xlfn.XLOOKUP(BI22,'Daten Beton'!C61:C68,'Daten Beton'!E61:E68) -> 38 | CY30: mm
C31: 1. Eingabe der Belastungen | AN31: Klammern | AZ31: Klammertyp | BA31: : | BB31: 1,83 x 63 | BG31: mm | CI31: V2 | CJ31: = | CK31: (Hd,ges/ns) * (e/Dübelabstand) | CS31: = | CT31: =(Q40/BB28)*(CT29/CT30) -> 6.960315789 | CY31: kN | DJ31: Anzahl der Koppelfugen | DU31: nKoppelf. | DX31: = | DZ31: bS / bElement | EH31: = | EI31: =ROUND((bs /(Q23/1000))-1,0) -> 5 | EL31: Stück
C32: Teilsicherheitsbeiwerte | N32: уM | P32: = | Q32: 1.3 | AN32: Tragfähigkeit pro Klammer | AX32: Rk,Klammer | BA32: = | BB32: 0.73 | BG32: kN | CN32: Vres=Wurzel((Hd,ges/ns)²+V2²) | CS32: = | CT32: =SQRT((Q40/BB28)^2+CT31^2) -> 7.7236714 | CY32: kN | DJ32: Verformung infolge der Koppelfugen | DU32: uges,Fuge | DX32: = | DY32: = | DZ32: Ft,k*(nKoppelf.+1)/KFuge*(hS/bS) | EH32: = | EI32: =AE54*1000 * (EI31 +1) / (DZ29) * (Q20 / bs) -> 1.594120079 | EL32: mm
M33: уG,stabilisierend | P33: = | Q33: 0.9 | AX33: Rd,Klammer | BA33: = | BB33: =Q36*BB32/Q32 -> 0.5615384615 | BG33: kN | CO33: Rv,d,Betondübel | CS33: = | CT33: =_xlfn.XLOOKUP(BI22,'Daten Beton'!C49:C56,'Daten Beton'!N49:N56) -> 18.76 | CY33: kN | DJ33: Schubverzerrung der Elemente | DU33: GAef,Scheibe | DX33: = | DY33: = | DZ33: GAef / bElement * bS | EH33: = | EI33: =BB55/(Q23/1000) * bs -> 48672 | EL33: kN
N34: уq | P34: = | Q34: 1.5 | W34: (bei Belastung aus Erdbeben 1,0) | AN34: Anzahl Klammern / Meter Schwelle | AZ34: nK | BA34: = | BB34: 10 | BG34: Stück | CJ34: ηSchub,2 | CM34: = | CN34: Vres/Rv,d,Betondübel | CS34: = | CT34: =CT32/CT33 -> 0.4117095629 | DU34: uges,Elemente | DX34: = | DY34: = | DZ34: hS * ( Hw,k,ges * 1) / GAef,Scheibe | EH34: = | EI34: =Q20* 1000*( Q39 * 1) / EI33 -> 0.2476331361 | EL34: mm
N35: уg | P35: = | Q35: 1.35 | W35: (bei Belastung aus Erdbeben 1,0) | AN35: Koppelfuge der Wandelemente | DJ35: Gesamtverformung der Scheibe | DU35: uges | DX35: = | DY35: = | DZ35: uges,Fuge + uges,Elemente | EH35: = | EI35: =EI34+EI32 -> 1.841753215 | EL35: mm
C36: Modifikationsbeiwert | N36: kmod | P36: = | Q36: 1 | W36: (bei Belastung aus Erdbeben 1,1) | AN36: Koppelbrett | AZ36: Material | BA36: : | BB36: Nadelholz C24 | DJ36: maximal zulässige Verformung | DU36: umax | DX36: = | DY36: = | DZ36: hs/500 | EH36: = | EI36: =Q20 / 500 *1000 -> 5.4 | EL36: mm
AO37: Dicke | AY37: dkop | BA37: = | BB37: 26.5 | BG37: mm | BY37: Nachweis der Koppelfugen Schwelle/Rähm zu Wandelement
C38: Horizontallasten am Wandkopf infolge Wind/Erdbeben | AO38: Schubtragfähigkeit | AY38: fv,d | BA38: = | BB38: =_xlfn.XLOOKUP(BB36,'Daten Beton'!A11:A13,'Daten Beton'!B11:B13)*Q36/Q32 -> 1.538461538 | BG38: N/mm² | CB38: Anzahl Klammern / Meter Schwelle | CQ38: nK | CS38: = | CT38: =BB34 -> 10 | CY38: Stück | DJ38: Nachweis der Verformungen | EC38: ηu | ED38: = | EE38: uges/umax | EH38: = | EI38: =EI35/EI36 -> 0.3410654102
N39: Hw,k,ges | P39: = | Q39: 4.464 | T39: kN | AO39: Schubtragfähigkeit bezogen auf dkop | AY39: Rv,d,kop | BA39: = | BB39: =BB38*BB37 -> 40.76923077 | BG39: kN/m | CP39: Rd,Klammer | CS39: = | CT39: =BB33 -> 0.5615384615 | CY39: kN
I40: Hd,ges | K40: = | L40: уq * Hw,k,ges | P40: = | Q40: =Q39*Q34 -> 6.696 | T40: kN | AN40: Klammern | BB40: Klammertyp und Tragfähigkeit analog zur Koppelfuge Schwelle/Rähm | CI40: ηSchwelle | CL40: = | CM40: td,Wand/(nk*Rv,d,Klammer) | CS40: = | CT40: =AE51/(CT39*CT38) -> 0.298109589
C41: Auflast der Wand inklusive Eigengewicht | AY41: eKL | BA41: = | BB41: 50 | BG41: mm | DJ41: Zusammenfassung der Nachweise
N42: gk | P42: = | Q42: 7.8 | T42: kN/m | AX42: EC 5, Tabelle 8.3 | BA42: ek,min = 10d | BB42: = | BC42: =10*IF(BB40="1,83 x 63mm",1.83,1.53) -> 15.3 | BY42: Nachweis der Koppelfugen der Wandelemente | DJ42: GZT
N43: pk | P43: = | Q43: 2.04 | T43: kN/m | AO43: Anzahl der Koppelbretter je Stoß | AY43: nKo | BA43: = | BB43: 1 | BG43: Stück | BZ43: Koppelbrett: | DK43: =AN49 -> Nachweis der Wandelemente
H44: qd | I44: = | J44: уg * gk +уq * pk | P44: = | Q44: =Q35*Q42+Q34*Q43 -> 13.59 | T44: kN/m | AO44: Schnittigkeit der Klammerverbindung | CQ44: nK | CS44: = | CT44: 1 | CY44: Stück | DM44: Quertragfähigkiet | DV44: =DW44 -> 0.054405 | DW44: =CT10 -> 0.054405
AO45: im Bereich des Koppelbretts | AY45: nKI | BA45: = | BD45: =IF(BB43=2,3,1) -> 1 | CP45: Rv,d,kop | CS45: = | CT45: =BB39 -> 40.76923077 | CY45: kN/m | DM45: Drucktragfähigkeit | DV45: =DW45 -> 0.1461790642 | DW45: =CT11 -> 0.1461790642
C46: 2. Ermittlung der Schnittgrößen | AO46: effektiver Klammerabstand | AY46: eKl,ef | BA46: = | BB46: =$BB$41/$BD$45 -> 50 | BG46: mm | CJ46: ηKoppelbrett | CM46: = | CN46: td,Wand/(nk*Rv,d,kop) | CS46: = | CT46: =AE51/(CT45*CT44) -> 0.04106037736 | DK46: =BY16 -> Nachweis der Anschlüsse
C47: Anzahl der Elemente | T47: nElemente | W47: = | X47: bs/bElement | AD47: = | AE47: =ROUND(bs*1000/Q23,0) -> 6 | AH47: Stück | CH47: (für den Nachweis der Schubtragfähigkeit wird auf der sicheren Seite liegend nur ein Koppelbrett berücksichtigt) | DM47: Zugverankerung | DV47: =DW47 -> 0.3090461538 | DW47: =CT20 -> 0.3090461538
C48: Druckzone | T48: bR | W48: = | X48: bElement*nElemente*1/5 | AD48: = | AE48: =Q23*AE47/5000 -> 0.75 | AH48: m | AN48: 4. Tragfähigkeitsnachweis | BZ48: Klammern: | DM48: Schubsicherung
C49: Mittlere Breite | T49: bM | W49: = | X49: bs-(2*bR/2) | AD49: = | AE49: =bs-(2*AE48/2) -> 3.25 | AH49: m | AN49: Nachweis der Wandelemente | CB49: effektiver Klammerabstand | DO49: Holz-/Stahltragfähigkeit | DV49: =DW49 -> 0.7772142857 | DW49: =CT26 -> 0.7772142857
AN50: Die Kenndaten der Lignotrend-Elemente finden Sie in der jeweiligen | CQ50: eKl,ef | CS50: = | CT50: =BB46 -> 50 | CY50: mm | DO50: Betondübel | DV50: =DW50 -> 0.4117095629 | DW50: =CT34 -> 0.4117095629
C51: Schubfluss | T51: td,Wand | W51: = | X51: Hd,ges/bS | AD51: = | AE51: =Q40/bs -> 1.674 | AH51: kN/m | AN51: technischen Dokumentation auf der letzten Seite. | CP51: Rv,d,Klammer | CS51: = | CT51: =BB33 -> 0.5615384615 | CY51: kN | DM51: Schwelle/Rähm zu Wandelement | DV51: =DW51 -> 0.298109589 | DW51: =CT40 -> 0.298109589
C52: Faktor zur Berücksichtigung der Scheibengeometrie | T52: FG | W52: = | X52: wenn(bs>hs/2; 0,75; 1) | AD52: = | AE52: =IF(bs>Q20/2,0.75,1) -> 0.75 | AH52: - | CF52: ηKlammer | CI52: = | CJ52: td,Wand/(Rv,d,Klammer*1000/eKl,ef) | CS52: = | CT52: =AE51/(CT51*1000/CT50) -> 0.1490547945 | DM52: Koppelfuge der Wandelemente
C53: Bemessungsdruckkraft | T53: Fc,d | W53: = | X53: FG*Hd,ges*hs/bM + qd*bR | AD53: = | AE53: =((AE52*Q40*Q20)/AE49)+(Q44*AE48) -> 14.36462308 | AH53: kN | AY53: VR,k,y | BA53: = | BB53: =_xlfn.XLOOKUP(I23,'Daten Beton'!A3:A5,'Daten Beton'!C3:C5) -> 25 | BG53: kN/Element | DO53: Koppelbrett | DV53: =DW53 -> 0.04106037736 | DW53: =CT46 -> 0.04106037736
C54: charakt. Zugkraft | T54: Ft,k | W54: = | X54: Hw,k,ges*hs/bM | AD54: = | AE54: =Q39*Q20/AE49 -> 3.708553846 | AH54: kN | AY54: VR,d,y | BA54: = | BB54: =Q36*BB53/Q32 -> 19.23076923 | BG54: kN/Element | DO54: Klammern | DV54: =DW54 -> 0.1490547945 | DW54: =CT52 -> 0.1490547945
C55: Bemessungszugkraft | T55: Ft,d | W55: = | X55: Hd,ges*hs/bM | AD55: = | AE55: =Q40*Q20/AE49 -> 5.562830769 | AH55: kN | AY55: GAef | BA55: = | BB55: =_xlfn.XLOOKUP(I23,'Daten Beton'!A3:A5,'Daten Beton'!D3:D5) -> 7605 | BG55: kN/Element | DJ55: GZG
C56: anzusetzende Auflast auf den Scheibenrand zur Lagesicherung | T56: Fv,d,Aufl | W56: = | X56: уG,stab*(gk*bs/2) | AD56: = | AE56: =Q33*(Q42*bs/2) -> 14.04 | AH56: kN | AY56: NR,d | BA56: = | BB56: =_xlfn.XLOOKUP(I23,'Daten Beton'!A3:A5,'Daten Beton'!G3:G5)*kmod/ymholz -> 131.0230769 | BG56: kN/m | DK56: Nachweis der Verformungen | DV56: =DW56 -> 0.3410654102 | DW56: =EI38 -> 0.3410654102
C57: zu verankernde Zuglast | T57: Ft,d,res | W57: = | X57: Ft,d-Fv,d,Aufl. | AD57: = | AE57: =AE55-AE56 -> -8.477169231 | AH57: kN | AT57: Rd,Randrippe | AW57: = | AX57: NR,d *bR | BA57: = | BB57: =BB56*AE48 -> 98.26730769 | BG57: kN

Sheet Daten Beton (hidden)
A1: Elemente
B2: Stärke [mm] | C2: VR,k,y [kN] | D2: GAef [kN] | E2: Iz [cm4] | F2: MR,k,z [kNm] | G2: NR,k,SP[kN/m]
A3: Uni Q3-110 | B3: 110 | C3: 25 | D3: 7605 | E3: 112.1 | F3: 57.4 | G3: 170.33
A4: Uni Q3-123 | B4: 123 | C4: 33.1 | D4: 9686 | E4: 107.2 | F4: 54.9 | G4: 157.69
A5: Uni Q3/HL-110 | B5: 110 | C5: 25 | D5: 7492 | E5: 107.4 | F5: 60.7 | G5: 166.61
G7: (aus Bemessungsprogramm Wand Uni)
A9: Koppelbrett
B10: fv,k [N/mm²] | C10: pk,1 [kg/m³] | D10: pmean [kg/m³]
A11: Nadelholz C24 | B11: 2 | C11: 350 | D11: 420
A12: Sperrholz | B12: 3 | C12: 550 | D12: 640
A13: DreiS.- Platte | B13: 2.7 | C13: 430 | D13: 505
A16: Zugverankerung | C16: Holz-Beton
A17: Rothoblaas
A18: Simpson Strong Tie
E21: Holz | I21: Stahl | L21: Beton | R21: maßgebend
A22: Hersteller | C22: Typ | D22: Unterlegscheibe | E22: Anzahl Nägel | F22: Ankernagel | G22: R1,k,timber | H22: R1,d,timber | I22: R1,k,steel | J22: gamma | K22: R1,d,steel | L22: Ø Anker | M22: Hersteller + Typ | N22: Rv,d,cracked | O22: Rt,d,cracked | P22: Abminderung Exzentrizität | Q22: Rt,d
A23: Rothoblaas | C23: WHT340 | D23: - | E23: 14 | F23: LBA 4x60 | G23: 27 | H23: 18.69230769 | I23: 42 | J23: 1.25 | K23: =I23/J23 -> 33.6 | L23: M16*160 | M23: Rothoblaas EPO-FIX PLUS | O23: 29.3 | P23: 1 | Q23: =P23*O23 -> 29.3 | R23: =MIN(Q23,K23,H23) -> 18.69230769
A24: Rothoblaas | C24: WHT440 | D24: - | E24: 20 | F24: LBA 4x60 | G24: 38.6 | H24: 26.72307692 | I24: 42 | J24: 1.25 | K24: 33.6 | L24: M16*160 | M24: Rothoblaas EPO-FIX PLUS | O24: 29.3 | P24: 1 | Q24: =P24*O24 -> 29.3 | R24: =MIN(Q24,K24,H24) -> 26.72307692
A25: Rothoblaas | C25: WHT plate 540 | D25: - | E25: 30 | F25: LBA 4x60 | G25: 70.8 | H25: 49.01538462 | I25: 70.6 | J25: 1.25 | K25: 56.48 | L25: 2x M16*190 | M25: Rothoblaas VIN-FIX PRO | O25: 34.2 | P25: 1 | Q25: =P25*O25 -> 34.2 | R25: =MIN(Q25,K25,H25) -> 34.2
A26: Rothoblaas | C26: WHT340 + Hilti Anker | D26: - | E26: 14 | F26: LBA 4x60 | G26: 27 | H26: 18.69230769 | I26: 42 | J26: 1.25 | K26: 33.6 | L26: M16*135 | M26: Hilti HST3 | N26: 44.2 | O26: 18 | P26: 1 | Q26: =O26*P26 -> 18 | R26: =MIN(H26,K26,Q26) -> 18
A27: Rothoblaas | C27: WHT440 + Hilti Anker | D27: - | E27: 20 | F27: LBA 4x60 | G27: 38.6 | H27: 26.72307692 | I27: 42 | J27: 1.25 | K27: 33.6 | L27: M16*135 | M27: Hilti HST3 | N27: 44.2 | O27: 18 | P27: 1 | Q27: 18 | R27: 18
A28: Rothoblaas | C28: WHT plate 540 +Hilti Anker | D28: - | E28: 30 | F28: LBA 4x60 | G28: 70.8 | H28: 49.01538462 | I28: 70.6 | J28: 1.25 | K28: 56.48 | L28: 2x M16*135 | M28: Hilti HST3 | N28: 82 | O28: 24 | P28: 1 | Q28: =O28*P28 -> 24 | R28: 24
A29: Simpson Strong Tie | C29: HTT4 | D29: US50/50/8 | E29: 18 | F29: CNA 4x60 | G29: =MIN((E29-3.5)*2.36,31,43/kmod) -> 31 | H29: 21.46153846 | L29: M16*123 | M29: BOAX-II M16-123/5 | N29: =25.1*1.4 -> 35.14 | O29: =9.5*1.4 -> 13.3 | P29: 1 | Q29: 13.3 | R29: 13.3
A30: Simpson Strong Tie | C30: HTT5 | D30: US50/50/9 | E30: 18 | F30: CNA 4x60 | G30: =MIN((E30-3.5)*2.36,31,43/kmod) -> 31 | H30: 21.46153846 | L30: M16*123 | M30: BOAX-II M16-123/5 | N30: =25.1*1.4 -> 35.14 | O30: =9.5*1.4 -> 13.3 | P30: 1 | Q30: 13.3 | R30: 13.3
A31: Simpson Strong Tie | C31: HTT22E | D31: US50/50/9 | E31: 26 | F31: CNA 4x60 | G31: =MIN((E31-3.5)*2.36,53.1, 57.5/kmod) -> 53.1 | H31: 36.76153846 | L31: M16*123 | M31: BOAX-II M16-123/5 | N31: =25.1*1.4 -> 35.14 | O31: =9.5*1.4 -> 13.3 | P31: 1 | Q31: 13.3 | R31: 13.3
A32: Simpson Strong Tie | C32: AH39050_2 | D32: US40/50/10 | E32: 7 | F32: CNA 4x60 | G32: =MIN(E32*2.36,14.8/kmod) -> 14.8 | H32: 11.38461538 | L32: M12*103 | M32: BOAX-II M12-103/5 | N32: =13.4*1.4 -> 18.76 | O32: =4.8*1.4 -> 6.72 | P32: 0.3333333333 | Q32: 2.24 | R32: 2.24
A33: Simpson Strong Tie | C33: HD340M12G | D33: 15-20 mm | E33: 13 | F33: CNA 4x60 | G33: =MIN(E33*2.36, 17.8/kmod) -> 17.8 | H33: 13.69230769 | L33: M12*103 | M33: BOAX-II M12-103/5 | N33: =13.4*1.4 -> 18.76 | O33: =4.8*1.4 -> 6.72 | P33: =1/1.2 -> 0.8333333333 | Q33: 5.6 | R33: 5.6
A34: Simpson Strong Tie | C34: HD420M16G | D34: 15-20 mm | E34: 13 | F34: CNA 4x60 | G34: =MIN(E34*2.36, 26.8/kmod) -> 26.8 | H34: 20.61538462 | L34: M16*123 | M34: BOAX-II M16-123/5 | N34: =25.1*1.4 -> 35.14 | O34: =9.5*1.4 -> 13.3 | P34: =1/1.2 -> 0.8333333333 | Q34: 11.08333333 | R34: 11.08333333
A35: Simpson Strong Tie | C35: HTT4 + Hilti Anker | D35: US50/50/8 | E35: 17 | F35: CNA 4x60 | G35: =MIN((E35-3.5)*2.36,31,43/kmod) -> 31 | H35: 21.46153846 | L35: M16*135 | M35: Hilti HST3 | N35: 44.2 | O35: 18 | P35: 1 | Q35: 18 | R35: 18
A36: Simpson Strong Tie | C36: HTT5 + Hilti Anker | D36: US50/50/9 | E36: 17 | F36: CNA 4x60 | G36: =MIN((E36-3.5)*2.36,31,43/kmod) -> 31 | H36: 21.46153846 | L36: M16*135 | M36: Hilti HST3 | N36: 44.2 | O36: 18 | P36: 1 | Q36: 18 | R36: 18
A37: Simpson Strong Tie | C37: HTT22E + Hilti Anker | D37: US50/50/9 | E37: 26 | F37: CNA 4x60 | G37: =MIN((E37-3.5)*2.36,53.1, 57.5/kmod) -> 53.1 | H37: 36.76153846 | L37: M16*135 | M37: Hilti HST3 | N37: 44.2 | O37: 18 | P37: 1 | Q37: 18 | R37: 18
A38: Simpson Strong Tie | C38: AH39050_2 + Hilti Anker | D38: US40/50/10 | E38: 7 | F38: CNA 4x60 | G38: =MIN(E38*2.36,14.8/kmod) -> 14.8 | H38: 11.38461538 | L38: M12*105 | M38: Hilti HST3 | N38: 28.3 | O38: 13.3 | P38: 0.3333333333 | Q38: 4.433333333 | R38: 4.433333333
A39: Simpson Strong Tie | C39: HD340M12G + Hilti Anker | D39: 15-20 mm | E39: 13 | F39: CNA 4x60 | G39: =MIN(E39*2.36, 17.8/kmod) -> 17.8 | H39: 13.69230769 | L39: M12*105 | M39: Hilti HST3 | N39: 28.3 | O39: 13.3 | P39: =1/1.2 -> 0.8333333333 | Q39: 11.08333333 | R39: 11.08333333
A40: Simpson Strong Tie | C40: HD420M16G + Hilti Anker | D40: 15-20 mm | E40: 13 | F40: CNA 4x60 | G40: =MIN(E40*2.36, 26.8/kmod) -> 26.8 | H40: 20.61538462 | L40: M16*135 | M40: Hilti HST3 | N40: 44.2 | O40: 18 | P40: =1/1.2 -> 0.8333333333 | Q40: 15 | R40: 15
A42: Schubsicherung | C42: Holz-Beton
A43: Rothoblaas
A44: Simpson Strong Tie
E47: Holz | I47: Stahl | L47: Betonanker | O47: maßgebend(min Holz/Stahl)
A48: Hersteller | C48: Typ | D48: Unterlegscheibe | E48: Anzahl Nägel | F48: Ankernagel LBA | G48: R1,k,timber | H48: R1,d,timber | I48: R1,k,steel | J48: gamma | K48: R1,d,steel | L48: Anker | M48: Hersteller | N48: Rv,d,cracked
A49: Simpson Strong Tie | C49: AE 76-R (Beton) | D49: U40/50/10 | E49: 9 | F49: CNA 4x60 | G49: =11.2/2 -> 5.6 | H49: =G49*kmod/ymholz -> 4.307692308 | L49: M12*103 | M49: BOAX-II M12-103/5 | N49: =13.4*1.4 -> 18.76 | O49: =MIN(H49,K49) -> 4.307692308
A50: Simpson Strong Tie | C50: AE 116 (Beton) | D50: U40/50/10G-B | E50: 12 | F50: CNA 4x60 | G50: =27.7/2 -> 13.85 | H50: 10.65384615 | L50: 2x M12*103 | M50: BOAX-II M12-103/5 | N50: =13.4*1.4*2 -> 37.52 | O50: =MIN(H50,K50) -> 10.65384615
A51: Simpson Strong Tie | C51: AE 76-R + Hilti Anker | D51: U40/50/10 | E51: 9 | F51: CNA 4x60 | G51: =11.2/2 -> 5.6 | H51: 4.307692308 | L51: M12*105 | M51: Hilti HST3 | N51: 22.6 | O51: 4.307692308
A52: Simpson Strong Tie | C52: AE 116 + Hilti Anker | D52: U40/50/10G-B | E52: 12 | F52: CNA 4x60 | G52: =27.7/2 -> 13.85 | H52: 10.65384615 | L52: 2 x M12*105 | M52: Hilti HST3 | N52: 20 | O52: 10.65384615
A53: Rothoblaas | C53: Titan F TCF200 (Beton) | D53: - | E53: 30 | F53: LBA 4x60 | G53: 35.5 | H53: 27.30769231 | L53: 2 x M12*130 | M53: VIN-FIX PRO 5.8 | N53: 29.7 | O53: 27.30769231
A54: Rothoblaas | C54: Titan Plate C TCP200 (Beton) | D54: - | E54: 30 | F54: LBA 4x60 | G54: 55.6 | H54: 42.76923077 | I54: 21.8 | J54: 1.25 | K54: =I54/J54 -> 17.44 | L54: 2 x M12*130 | M54: VIN-FIX PRO 5.8 | N54: 10.1 | O54: 17.44
A55: Rothoblaas | C55: Titan F TCF200 + Hilti Anker | D55: - | E55: 30 | F55: LBA 4x60 | G55: 35.5 | H55: 27.30769231 | L55: 2 x M12*105 | M55: Hilti HST3 | N55: 20 | O55: 27.30769231
A56: Rothoblaas | C56: TitanPlate TCP200 + Hilti Anker | D56: - | E56: 30 | F56: LBA 4x60 | G56: 55.6 | H56: 42.76923077 | I56: 21.8 | J56: 1.25 | K56: =I56/J56 -> 17.44 | L56: 2 x M12*105 | M56: Hilti HST3 | N56: 20 | O56: =MIN(H56,K56) -> 17.44
A58: Geometrie Schubwinkel
A60: Hersteller | C60: Typ | D60: Abstand Kraft - Dübel | E60: Dübelabstand
A61: Simpson Strong Tie | C61: AE 76-R (Beton) | D61: =48/2 -> 24 | E61: =76/2 -> 38
A62: Simpson Strong Tie | C62: AE 116 (Beton) | D62: =48/2 -> 24 | E62: =116/2 -> 58
A63: Simpson Strong Tie | C63: AE 76-R + Hilti Anker | D63: =D61 -> 24 | E63: =E61 -> 38
A64: Simpson Strong Tie | C64: AE 116 + Hilti Anker | D64: =D62 -> 24 | E64: =E62 -> 58
A65: Rothoblaas | C65: Titan F TCF200 (Beton) | D65: 39.5 | E65: 150
A66: Rothoblaas | C66: Titan Plate C TCP200 (Beton) | D66: 180 | E66: 150 | F66: Montagekerbe an Holz-Beton-Schnittstelle
A67: Rothoblaas | C67: Titan F TCF200 + Hilti Anker | D67: =D65 -> 39.5 | E67: =E65 -> 150
A68: Rothoblaas | C68: TitanPlate TCP200 + Hilti Anker | D68: =D66 -> 180 | E68: =E66 -> 150 | F68: Montagekerbe an Holz-Beton-Schnittstelle

Sheet Titan F TCF200 (Beton) (hidden)

Sheet WHT340 (hidden)

Sheet WHT440 (hidden)

Sheet WHT plate 540 (hidden)

Sheet WHT340 + Hilti Anker (hidden)

Sheet WHT440 + Hilti Anker (hidden)

Sheet WHT plate 540 +Hilti Anker (hidden)

Sheet HTT4 (hidden)

Sheet HTT5 (hidden)

Sheet HTT22E (hidden)

Sheet AH39050_2 (hidden)

Sheet HD340M12G (hidden)

Sheet HD420M16G (hidden)

Sheet HTT4 + Hilti Anker (hidden)

Sheet HTT5 + Hilti Anker (hidden)

Sheet HTT22E + Hilti Anker (hidden)

Sheet AH39050_2 + Hilti Anker (hidden)

Sheet HD340M12G + Hilti Anker (hidden)

Sheet HD420M16G + Hilti Anker (hidden)

Sheet AE 76-R (Beton) (hidden)

Sheet AE 116 (Beton) (hidden)

Sheet AE 76-R + Hilti Anker (hidden)

Sheet AE 116 + Hilti Anker (hidden)

Sheet Titan Plate C TCP200 (Beton) (hidden)

Sheet Titan F TCF200 + Hilti Anker (hidden)

Sheet TitanPlate TCP200 + Hilti Anker (hidden)

Sheet Titan F TCF200 (hidden)

Sheet AE 76-R (hidden)

Sheet AE 116 (hidden)

Sheet Typ V 65x135x90 (hidden)

Sheet BAN2025xx (hidden)

Sheet BAN208025 (hidden)

Sheet BAN2040xx (hidden)
